[Event "CCC-IM 2022"]
[Site "Ballerup"]
[Date "2022.05.27"]
[Round "5.1"]
[White "Brynell, Stellan"]
[Black "Casper Yukun Liu"]
[Result "1/2-1/2"]
[ECO "A49"]
[WhiteElo "2401"]
[BlackElo "2218"]
[Annotator "TA"]
[PlyCount "54"]
[EventDate "2022.05.25"]
[EventType "tourn"]
[EventCountry "DEN"]
[SourceTitle "playchess.com"]
[Source "ChessBase"]
[SourceQuality "1"]
[TimeControl "5400+30"]

{[%evp 18,54,4,0,0,-7,-2,-44,-29,-46,-30,-35,0,0,0,6,0,0,0,0,80,71,130,131,141,135,139,112,123,45,41,14,7,0,0,0,0,0,0]} 1. d4 {[%emt 0:00:05]} Nf6 {[%emt 0:00:07]} 2. Nf3 {[%emt 0:00:07]} g6 {[%emt 0:00:18]} 3. g3 {[%emt 0:00:37]} Bg7 {[%emt 0:00:46]} 4. Bg2 {[%emt 0:00:12]} c6 {[%emt 0:00:33]} 5. c4 {[%emt 0:00:31]} d5 {[%emt 0:00:04]} 6. cxd5 {[%emt 0:01:22]} cxd5 {[%emt 0:00:14]} 7. Nc3 {[%emt 0:00:44]} O-O {[%emt 0:00:03]} 8. Ne5 {[%emt 0:00:40]} Bf5 {[%emt 0:01:08] seems to push 8...e6 aside.} 9. O-O {[%emt 0:02:43]} Ne4 {[%emt 0:00:12]} 10. Qb3 {[%emt 0:10:38]} Nc6 {[%emt 0:01:18] D79: Fianchetto Grünfeld: Symmetrical Variation (6 0-0 c6 7 cxd5 cxd5).} 11. Nxc6 {[%emt 0:16:43]} bxc6 {[%emt 0:00:02]} 12. Be3 {[%emt 0:01:49]} Nd6 {[%emt 0:06:29] [#] Black is slightly better.} 13. Qa4 $146 {[%emt 0:03:19]} ({Predecessor:} 13. Na4 Nc4 14. Qc3 Rc8 15. b3 Nxe3 16. Qxe3 c5 17. Nxc5 e5 18. Rac1 exd4 19. Qd2 {0-1 (40) Wang,B (1747)-Li,S (2020) Shenzhen 2019}) 13... Qb6 {[%emt 0:07:15]} 14. b3 $1 {[%emt 0:00:56]} Nb5 {[%emt 0:01:06]} 15. Nxb5 {[%emt 0:01:09]} cxb5 {[%emt 0:00:03]} 16. Qb4 {[%emt 0:00:20]} e6 {[%emt 0:00:01]} 17. Rac1 {[%emt 0:02:01]} Rfc8 {[%emt 0:01:22]} 18. Qd2 {[%emt 0:03:43]} Bf8 {[%emt 0:01:44]} (18... Rxc1 $11 19. Rxc1 g5) 19. f3 $16 {[%emt 0:04:14][%cal Bf2f3,Bf3f4][%mdl 32] [#] And now g4 would win.} g5 {[%emt 0:14:57]} (19... h5 $142) 20. Bxg5 {[%emt 0:01:38]} Ba3 {[%emt 0:02:50]} 21. Rxc8+ {[%emt 0:09:04]} Rxc8 {[%emt 0:00:01]} 22. e4 {[%emt 0:00:13]} Bg6 {[%emt 0:00:47]} 23. exd5 {[%emt 0:07:34]} (23. Bf6 $16) 23... e5 $14 {[%emt 0:04:28]} 24. f4 {[%emt 0:04:45]} (24. Be3 $5 {[%cal Rd4e5]} Rc2 25. Qd1 $14) 24... Rc2 {[%emt 0:02:15] The position is equal.} 25. Qd1 {[%emt 0:00:37]} Rc1 $1 {[%emt 0:05:04]} 26. Qd2 {[%emt 0:00:24]} Rc2 {[%emt 0:05:12]} 27. Qd1 {[%emt 0:00:11]} Rc1 $1 {[%emt 0:00:07] Weighted Error Value: White=0.12 (very precise) /Black=0.15 (very precise)} 1/2-1/2

[Event "CCC-IM 2022"]
[Site "Ballerup"]
[Date "2022.05.27"]
[Round "5.2"]
[White "Kenneskog, Theodor"]
[Black "Ahlander, Bjorn"]
[Result "1/2-1/2"]
[ECO "B90"]
[WhiteElo "2296"]
[BlackElo "2375"]
[Annotator "TA"]
[PlyCount "76"]
[EventDate "2022.05.25"]
[EventType "tourn"]
[EventCountry "DEN"]
[SourceTitle "playchess.com"]
[Source "ChessBase"]
[SourceQuality "1"]
[TimeControl "5400+30"]

{[%evp 17,76,22,29,12,22,17,30,16,16,20,41,35,40,0,0,0,0,0,10,8,6,14,0,7,11,12,16,0,0,0,0,0,0,0,0,-2,-2,-2,-2,-8,-8,-8,-7,-7,-7,-8,-7,-8,-8,-8,-8,-8,-8,-8,-8,-8,0,-8,0,-8,0]} 1. e4 {[%emt 0:00:03]} c5 {[%emt 0:00:05]} 2. Nf3 {[%emt 0:00:04]} d6 {[%emt 0:00:05]} 3. d4 {[%emt 0:00:06]} cxd4 {[%emt 0:00:03]} 4. Nxd4 {[%emt 0:00:05]} Nf6 {[%emt 0:00:07]} 5. Nc3 {[%emt 0:00:04]} a6 {[%emt 0:00:04]} 6. f3 {[%emt 0:00:08]} e5 {[%emt 0:00:13]} 7. Nb3 {[%emt 0:00:05]} Be6 {[%emt 0:00:08]} 8. Be3 {[%emt 0:00:05]} h5 {[%emt 0:00:58]} 9. Qd2 {[%emt 0:00:05]} Nbd7 {[%emt 0:00:22]} 10. Nd5 {[%emt 0:00:19] B90: Sicilian Najdorf: Unusual White 6th moves, 6 Be3 Ng4 and 6 Be3 e5.} Bxd5 {[%emt 0:01:01]} 11. exd5 {[%emt 0:00:04]} g6 {[%emt 0:00:13]} 12. O-O-O {[%emt 0:00:07] White has an edge.} Nb6 {[%emt 0:01:03]} 13. Kb1 {[%emt 0:00:05]} Nbxd5 {[%emt 0:00:34]} 14. Bg5 {[%emt 0:00:50] Hoping for Qxd5.} Be7 $1 {[%emt 0:00:03]} 15. c4 {[%emt 0:00:30] Recently 15.Bd3 got a lot of attention.} (15. Bc4 {keeps more tension.} Nb6 16. Na5 Rc8 17. Bb3) 15... Nb6 {[%emt 0:01:17] The position is equal.} 16. Bxf6 {[%emt 0:00:07]} Bxf6 {[%emt 0:00:21]} 17. Qxd6 {[%emt 0:00:10] [#]} Be7 $146 {[%emt 0:06:15]} ({Predecessor:} 17... Qxd6 18. Rxd6 Na4 19. Be2 Rd8 20. Rhd1 Rxd6 21. Rxd6 Ke7 22. Rd5 Rc8 23. Nd2 Bg7 {0-1 (41) Lei,T (2505)-Praggnanandhaa,R (2617) chess24.com INT 2021}) 18. Qxd8+ {[%emt 0:00:51]} Rxd8 {[%emt 0:00:09]} 19. Rxd8+ {[%emt 0:23:41]} Kxd8 {[%emt 0:00:41]} 20. c5 {[%emt 0:00:40]} Na4 {[%emt 0:06:14]} 21. Bc4 {[%emt 0:00:15]} Nxc5 {[%emt 0:01:29]} 22. Nxc5 {[%emt 0:02:59]} Bxc5 {[%emt 0:00:03]} 23. Bxf7 $11 {[%emt 0:00:06][%mdl 4096] Endgame KRB-KRB} Ke7 {[%emt 0:03:05]} 24. Bd5 {[%emt 0:01:39]} Rd8 {[%emt 0:02:52]} 25. Rd1 {[%emt 0:00:40]} g5 {[%emt 0:01:00]} 26. Bb3 {[%emt 0:01:40]} Rxd1+ {[%emt 0:00:08]} 27. Bxd1 {[%emt 0:00:04] KB-KB} Kf6 {[%emt 0:00:35]} 28. Kc2 {[%emt 0:02:17]} Bg1 {[%emt 0:00:54]} 29. h3 {[%emt 0:00:05]} h4 {[%emt 0:01:08]} 30. Kd3 {[%emt 0:00:14]} Kf5 {[%emt 0:01:23]} 31. Ke2 {[%emt 0:00:16]} Bd4 {[%emt 0:01:38]} 32. b3 {[%emt 0:00:08]} a5 {[%emt 0:00:37]} 33. a4 {[%emt 0:00:14]} b6 {[%emt 0:00:17]} 34. Bc2+ {[%emt 0:00:06]} Kf4 {[%emt 0:00:23]} 35. Be4 {[%emt 0:00:42]} Kg3 {[%emt 0:00:07]} 36. Kf1 {[%emt 0:00:03]} Kf4 {[%emt 0:00:06]} 37. Ke2 {[%emt 0:00:03]} Kg3 {[%emt 0:00:07]} 38. Kf1 {[%emt 0:00:03]} Kf4 {Weighted Error Value: White=0.02 (flawless) /Black=0.03 (flawless)} 1/2-1/2

[Event "CCC-IM 2022"]
[Site "Ballerup"]
[Date "2022.05.27"]
[Round "5.3"]
[White "Kistrup, Nicolai"]
[Black "Jacobsen, Mikkel Manosri"]
[Result "1/2-1/2"]
[ECO "B29"]
[WhiteElo "2306"]
[BlackElo "2251"]
[Annotator "TA"]
[PlyCount "135"]
[EventDate "2022.05.25"]
[EventType "tourn"]
[EventCountry "DEN"]
[SourceTitle "playchess.com"]
[Source "ChessBase"]
[SourceQuality "1"]
[TimeControl "5400+30"]

{[%evp 10,135,12,11,44,35,49,49,52,50,47,53,55,46,70,63,63,63,76,76,85,62,72,72,90,83,102,79,102,94,109,79,69,5,59,58,88,70,72,74,60,50,100,100,102,67,101,18,19,0,0,0,0,0,0,0,0,0,0,0,0,0,0,0,0,0,0,0,8,0,0,0,0,0,24,25,25,25,24,27,32,34,25,28,33,43,22,8,100,8,8,8,8,8,8,8,8,8,8,0,0,0,0,0,0,0,0,0,0,0,0,0,0,0,0,0,0,0,8,0,8,8,8,0,0,0,8,0]} 1. e4 {[%emt 0:00:46]} c5 {[%emt 0:01:05]} 2. Nf3 {[%emt 0:00:04]} Nf6 {[%emt 0:00:04]} 3. e5 {[%emt 0:00:13]} Nd5 {[%emt 0:00:04]} 4. Nc3 {[%emt 0:00:04]} e6 {[%emt 0:00:04]} 5. Ne4 {[%emt 0:00:04]} f5 {[%emt 0:00:14]} 6. Nc3 {[%emt 0:00:05]} Nxc3 {[%emt 0:00:03] 6...Ne7 is a critical line. B29: Sicilian: 2 Nf3 Nf6 (Nimzowitsch Variation).} 7. dxc3 {[%emt 0:00:06]} b6 {[%emt 0:00:51]} 8. Bf4 {[%emt 0:00:04][%cal Og2g4]} Bb7 {[%emt 0:00:54] White is slightly better.} 9. h4 {[%emt 0:00:14]} Nc6 {[%emt 0:00:19]} 10. Qd2 {[%emt 0:01:26]} Qc7 {[%emt 0:00:50]} 11. O-O-O {[%emt 0:01:41]} Be7 {[%emt 0:07:06]} 12. Be2 {[%emt 0:04:20]} O-O-O {[%emt 0:00:28]} 13. Kb1 {[%emt 0:00:08] [#]} Rdg8 $146 {[%emt 0:01:57]} ({Predecessor:} 13... g6 14. Qe3 Na5 15. c4 Ba6 16. b3 Nc6 17. c3 Bb7 18. h5 Rdg8 19. Kb2 Nd8 20. hxg6 hxg6 21. Rxh8 Rxh8 {1-0 (49) Silich,Y (2100)-Trybus,D (1874) Bratislava 2019}) 14. Qe3 {[%emt 0:04:18]} Nd8 {[%emt 0:01:01]} 15. Bb5 Bc6 {[%emt 0:00:22]} 16. Bxc6 {[%emt 0:15:33]} dxc6 {[%emt 0:04:29]} 17. Qe2 {[%emt 0:30:40]} h6 {[%emt 0:08:26]} 18. a4 {[%emt 0:05:16]} Kb7 {[%emt 0:02:43]} 19. Qc4 {[%emt 0:09:25]} Qc8 {[%emt 0:02:05]} 20. Rdg1 {[%emt 0:02:19] 0x0.001b5b2201a6dp-1022s more active pieces.} Nf7 {[%emt 0:01:47]} 21. g4 {[%emt 0:05:12]} (21. h5 $14) 21... g5 {[%emt 0:11:39]} (21... fxg4 $1 $11 22. Rxg4 g5 23. hxg5 hxg5) 22. hxg5 $14 {[%emt 0:01:40] [#] Strongly threatening gxf5.} hxg5 {[%emt 0:00:21]} 23. Bc1 {[%emt 0:01:26]} f4 {[%emt 0:02:52]} 24. Qe4 {[%emt 0:01:52]} Qe8 {[%emt 0:14:22]} 25. b3 {[%emt 0:06:46]} Rh6 {[%emt 0:09:02]} ({Better is} 25... a5 $14) 26. Rxh6 $16 {[%emt 0:03:00]} Nxh6 {[%emt 0:00:03]} 27. Nd2 {[%emt 0:01:40]} Qg6 {[%emt 0:00:53]} 28. Qxg6 {[%emt 0:01:48]} ({White should try} 28. Qe2 $16) 28... Rxg6 $11 {[%emt 0:00:01]} 29. c4 {[%emt 0:00:43]} Nf7 {[%emt 0:00:30]} 30. Rh1 {[%emt 0:01:57]} Rh6 {[%emt 0:00:47] Against Rh7} 31. Rxh6 {[%emt 0:00:07]} Nxh6 {[%emt 0:00:02][%mdl 4096] Endgame KBN-KBN} 32. f3 {[%emt 0:00:07]} Nf7 {[%emt 0:00:54]} 33. Bb2 {[%emt 0:00:06]} Bd8 {[%emt 0:00:20]} 34. Ne4 {[%emt 0:00:27]} Bc7 {[%emt 0:00:06]} 35. Kc1 {[%emt 0:01:46]} Kc8 {[%emt 0:01:42]} 36. Kd2 {[%emt 0:00:06]} Kd7 {[%emt 0:01:05]} 37. Nf6+ {[%emt 0:00:48]} Ke7 {[%emt 0:00:27]} 38. Nh7 {[%emt 0:01:21]} a6 {[%emt 0:04:54]} 39. Bc3 {[%emt 0:00:33]} b5 {[%emt 0:00:46]} 40. Ke2 {[%emt 0:00:36]} bxa4 {[%emt 0:00:17]} 41. bxa4 {[%emt 0:00:04]} Bxe5 {[%emt 0:00:31]} 42. Bxe5 {[%emt 0:00:15]} Nxe5 {[%emt 0:00:02]} 43. Nxg5 {[%emt 0:00:13]} Nxc4 {[%emt 0:02:15] KN-KN} 44. Ne4 {[%emt 0:00:12]} a5 $1 {[%emt 0:03:03]} 45. Nxc5 {[%emt 0:00:32] Threatens to win with Kd3.} Kd6 {[%emt 0:00:25]} 46. Nb7+ {[%emt 0:00:57]} Kd5 $1 {[%emt 0:01:46]} 47. g5 {[%emt 0:00:30]} Ke5 {[%emt 0:00:47]} 48. Nd8 {[%emt 0:01:02]} c5 {[%emt 0:08:13] [#]} (48... Kf5 $11) 49. g6 {[%emt 0:00:53]} (49. Nb7 $1 $16) 49... Kf6 {[%emt 0:00:18] The position is equal.} 50. g7 {[%emt 0:00:03]} Kxg7 {[%emt 0:00:13]} 51. Nxe6+ {[%emt 0:00:05]} Kf6 $1 {[%emt 0:00:15]} 52. Nxc5 {[%emt 0:00:54] Black must now prevent Kd3.} Ke5 {[%emt 0:00:04]} 53. Nd3+ {[%emt 0:00:32]} Kf5 {[%emt 0:00:11]} 54. c3 {[%emt 0:00:38]} Kg5 {[%emt 0:01:32]} 55. Nc5 {[%emt 0:00:10] Hoping for Kd3.} Kf5 {[%emt 0:00:05]} 56. Nd3 {[%emt 0:01:01]} Kg5 {[%emt 0:00:01]} 57. Nc5 {[%emt 0:01:13] Kd3 is the strong threat.} Kf5 {[%emt 0:00:05]} 58. Nb3 {[%emt 0:00:52]} Ke5 {[%emt 0:00:07]} 59. Kd3 {[%emt 0:00:14]} Kd5 {[%emt 0:00:04]} 60. Ke2 {[%emt 0:00:16]} Ke5 {[%emt 0:00:18]} 61. Nd2 {[%emt 0:00:53]} Kd5 {[%emt 0:01:38]} 62. Nb3 {[%emt 0:00:32]} Ke5 {[%emt 0:00:01]} 63. Nc5 {[%emt 0:00:33]} Kf5 {[%emt 0:00:07]} 64. Nd3 {[%emt 0:00:34]} Kg5 {[%emt 0:00:01]} 65. Nc1 {[%emt 0:00:23]} Kf5 {[%emt 0:00:21]} 66. Kd3 {[%emt 0:00:40]} Ne5+ {[%emt 0:00:16]} 67. Ke2 {[%emt 0:00:23]} Nc4 {[%emt 0:00:01]} 68. Nb3 {Weighted Error Value: White=0.12 (very precise) /Black=0.10 (very precise)} 1/2-1/2

[Event "CCC-IM 2022"]
[Site "Ballerup"]
[Date "2022.05.27"]
[Round "5.4"]
[White "Nielsen, Thomas Bach"]
[Black "Rostgaard, Tobias Valentin"]
[Result "1-0"]
[ECO "E71"]
[WhiteElo "2189"]
[BlackElo "2339"]
[Annotator "TA"]
[PlyCount "131"]
[EventDate "2022.05.25"]
[EventType "tourn"]
[EventCountry "DEN"]
[SourceTitle "playchess.com"]
[Source "ChessBase"]
[SourceQuality "1"]
[TimeControl "5400+30"]

{[%evp 14,131,41,33,25,10,63,15,22,11,69,66,71,58,74,69,99,104,244,240,237,235,243,236,245,241,233,179,170,147,173,163,217,214,219,211,296,295,297,285,277,272,277,270,339,328,342,330,363,356,317,222,255,235,577,461,768,733,1056,1041,870,877,29974,29975,29975,29976,29976,29977,29977,29978,29978,29979,29976,29972,29973,556,483,0,5281,0,490,490,440,421,622,584,629,614,635,598,483,483,670,614,547,464,1813,1101,5193,5165,29977,29978,29968,528,29967,568,29949,6971,29988,29985,29987,29988,29987,29985,29986,29987,29987,29988,29988,29989]} 1. d4 {[%emt 0:00:02]} Nf6 {[%emt 0:00:11]} 2. c4 {[%emt 0:00:04]} g6 {[%emt 0:00:19]} 3. Nc3 {[%emt 0:00:20]} Bg7 {[%emt 0:00:07]} 4. e4 {[%emt 0:00:06]} d6 {[%emt 0:00:04]} 5. h3 {[%emt 0:00:18]} O-O {[%emt 0:00:20]} 6. Bg5 {[%emt 0:00:38]} c5 {[%emt 0:00:28]} 7. d5 {[%emt 0:00:09]} Qa5 {[%emt 0:00:57]} 8. Bd2 {[%emt 0:07:14]} e6 {[%emt 0:01:16] E71: King's Indian: 4 e4 d6 5 h3.} 9. Bd3 {[%emt 0:05:28]} Nbd7 {[%emt 0:03:31]} (9... Re8 $11) 10. f4 {[%emt 0:03:17]} (10. Nf3 $14 {is superior.}) 10... exd5 $11 {[%emt 0:00:55] The position is equal.} 11. exd5 {[%emt 0:04:29]} (11. Nxd5 Qd8) 11... Re8+ {[%emt 0:01:54]} (11... Qd8 $1 $11) 12. Nge2 $14 {[%emt 0:00:17][%cal Bg1e2,Be2g3,Bg3f5][%mdl 32] [#]} Qd8 $146 {[%emt 0:01:44]} ({Predecessor:} 12... b5 13. Nxb5 Qb6 14. Qc2 Nf8 15. g4 Rb8 16. O-O-O Ba6 17. Nbc3 Nxd5 18. Nxd5 Bxb2+ {1-0 (52) Tereick,B (2373)-De Gleria,F (2335) Germany 2013}) 13. O-O {[%emt 0:02:38]} a6 {[%emt 0:01:55][%cal Ob7b5]} 14. a4 {[%emt 0:00:17] Against b5} Nf8 {[%emt 0:03:53]} 15. f5 {[%emt 0:05:53]} Bxf5 {[%emt 0:01:10]} (15... N8d7 $16) 16. Bxf5 $18 {[%emt 0:01:24]} gxf5 {[%emt 0:00:07]} 17. Ng3 {[%emt 0:07:52]} (17. Rxf5 $6 Ne4 $16) 17... Ne4 {[%emt 0:03:52]} 18. Nxf5 {[%emt 0:00:47]} Nxd2 {[%emt 0:04:12]} 19. Qxd2 {[%emt 0:05:13]} Ng6 {[%emt 0:00:19]} 20. Nxg7 {[%emt 0:07:06]} Kxg7 {[%emt 0:00:08]} 21. Qf2 {[%emt 0:00:36]} Qd7 {[%emt 0:05:00]} 22. Ne2 {[%emt 0:01:43][%cal Bc3e2,Be2g3,Bg3f5][%mdl 32]} Re5 {[%emt 0:02:29] [#]} (22... Qe7 $142) 23. Ng3 $1 {[%emt 0:00:38] Strongly threatening Qf6+.} Kg8 {[%emt 0:03:16]} 24. Nf5 {[%emt 0:02:46] Against Nh4. Threatens to win with Nh6+.} Rf8 {[%emt 0:01:40]} (24... Kh8 {was worth a try.} 25. Ra3 Rf8) 25. Nh6+ {[%emt 0:01:31]} Kg7 {[%emt 0:00:16]} 26. Ng4 {[%emt 0:00:08] Threatening mate with Qf6+.} f5 {[%emt 0:01:50]} 27. Nxe5 {[%emt 0:00:29]} Nxe5 {[%emt 0:00:03]} 28. Qf4 {[%emt 0:01:30]} Kh8 {[%emt 0:01:21]} 29. Ra3 {[%emt 0:05:08][%cal Ba1a3,Ba3d3,Bd3g3][%mdl 32]} Ng6 {[%emt 0:01:13]} 30. Qg5 {[%emt 0:02:03]} f4 {[%emt 0:00:28]} 31. h4 {[%emt 0:09:43][%cal Bh3h4,Bh4h5,Bh5h6][%mdl 32]} Qg7 {[%emt 0:07:29]} 32. Rd3 {[%emt 0:08:19]} Qxb2 {[%emt 0:04:40]} 33. h5 {[%emt 0:00:21]} Ne5 {[%emt 0:01:01] [#]} (33... Rg8 {is tougher.} 34. Rb3 (34. hxg6 Rxg6 35. Qd8+ Rg8 $11) 34... Qxb3 35. Qf6+ Rg7) 34. Rg3 $1 {[%emt 0:01:30][%csl Gg3][%cal Rg5g7]} ({Stronger than} 34. Qe7 Rg8 35. Qf6+ Rg7 36. Qd8+ Rg8 37. Qf6+ Rg7 38. Qf8+ Rg8 39. Qf6+ $11) 34... Qd4+ {[%emt 0:05:53]} (34... Nf3+ $142 35. Rgxf3 Rg8 36. Qxg8+ Kxg8 37. Rxf4 Kg7) 35. Kh1 {[%emt 0:00:03][%csl Gg3][%cal Rg5g7,Bg1h1,Bh1h2,Bh2h3][%mdl 32]} Nd3 {[%emt 0:01:13]} 36. h6 {[%emt 0:05:57] Intending Qg7+ and mate.} Nf2+ {[%emt 0:00:16] [#]} 37. Rxf2 $1 {[%emt 0:00:37][%mdl 512]} Qd1+ {[%emt 0:00:07]} (37... Qa1+ 38. Kh2) 38. Kh2 {[%emt 0:01:19][%csl Gg3,Gh6][%cal Rg5g7]} fxg3+ {[%emt 0:00:08] KQR-KQR} 39. Kh3 {[%emt 0:07:07][%cal Rf2f8]} Qh1+ {[%emt 0:06:02]} 40. Kxg3 {[%emt 0:00:34][%cal Rf2f8]} Rg8 {[%emt 0:00:16] [#]} 41. Rf8 $3 {[%emt 0:00:05][%csl Gg5][%cal Rf8g8][%mdl 512]} Qe1+ {[%emt 0:00:06]} 42. Kh2 {[%emt 0:00:25][%csl Gg5][%cal Rf8g8]} Qe5+ {[%emt 0:00:11]} 43. Qxe5+ {[%emt 0:00:09]} dxe5 {[%emt 0:00:06] KR-KR} 44. Rf7 {[%emt 0:02:26]} (44. Rxg8+ $142 Kxg8 45. d6 Kf7 46. g4 e4 47. g5 e3 48. Kg3 e2 49. Kf2) 44... Rg6 {[%emt 0:00:22]} 45. Rf8+ {[%emt 0:00:01]} (45. Kh3 $142) 45... Rg8 {[%emt 0:00:14]} 46. Rf7 {[%emt 0:00:16]} (46. Rxg8+ $142 Kxg8 47. d6) 46... Rg6 $1 {[%emt 0:00:20]} 47. Rxb7 {[%emt 0:00:09]} Rxh6+ {[%emt 0:00:11]} 48. Kg3 {[%emt 0:00:14]} Rf6 {[%emt 0:00:18]} (48... Kg8 $142 49. Rc7 Rf6 50. Rxc5 Rf4) 49. Re7 {[%emt 0:00:20]} Kg8 {[%emt 0:00:54]} 50. Rxe5 {[%emt 0:00:33]} Kf7 {[%emt 0:00:12]} 51. Kg4 {[%emt 0:01:02]} Rb6 {[%emt 0:00:15]} 52. Kf5 {[%emt 0:02:34]} Rf6+ {[%emt 0:02:20]} 53. Ke4 {[%emt 0:00:38] Black must now prevent Rf5.} Rg6 {[%emt 0:00:16]} 54. Rf5+ {[%emt 0:01:16]} Ke7 {[%emt 0:00:28]} (54... Ke8 $142 55. Ke5 a5) 55. Ke5 {[%emt 0:00:04][%cal Od5d6] And now d6+! would win.} Rxg2 {[%emt 0:01:56]} 56. d6+ {[%emt 0:00:04][%cal Bd5d6,Bd6d7][%mdl 32]} Kd7 {[%emt 0:00:24]} 57. Rf7+ {[%emt 0:00:41]} Kc6 {[%emt 0:00:47]} 58. Rc7+ {[%emt 0:01:22]} Kb6 {[%emt 0:00:10]} 59. a5+ {[%emt 0:00:26]} Kxa5 {[%emt 0:00:08]} 60. d7 {[%emt 0:00:40]} Rg5+ {[%emt 0:03:28]} 61. Kd6 {[%emt 0:00:59] White mates.} Rg1 {[%emt 0:00:53]} 62. Rxc5+ {[%emt 0:00:33]} Kb4 {[%emt 0:00:16]} 63. Rd5 {[%emt 0:00:34]} Rg6+ {[%emt 0:02:03]} 64. Kc7 {[%emt 0:00:20]} Rg7 {[%emt 0:00:09]} 65. c5 {[%emt 0:00:10]} Kc4 {[%emt 0:00:35]} 66. Kc6 {[%emt 0:01:10] Weighted Error Value: White=0.52/Black=0.70} 1-0

[Event "CCC-IM 2022"]
[Site "Ballerup"]
[Date "2022.05.27"]
[Round "5.5"]
[White "Sahl, Bjarke"]
[Black "Seegert, Kristian"]
[Result "0-1"]
[ECO "C63"]
[WhiteElo "2312"]
[BlackElo "2209"]
[Annotator "TA"]
[PlyCount "66"]
[EventDate "2022.05.25"]
[EventType "tourn"]
[EventCountry "DEN"]
[SourceTitle "playchess.com"]
[Source "ChessBase"]
[SourceQuality "1"]
[TimeControl "5400+30"]

{[%evp 10,66,52,0,21,-17,-14,-14,-27,-16,0,-22,110,120,111,112,120,89,172,149,164,100,84,71,179,163,192,199,339,304,693,722,707,700,717,702,708,702,661,234,252,263,244,267,243,189,211,213,625,608,565,321,483,459,509,511,800,-2244,-2104]} 1. e4 {[%emt 0:01:57]} e5 {[%emt 0:00:10]} 2. Nf3 {[%emt 0:01:50]} Nc6 {[%emt 0:00:09]} 3. Bb5 {[%emt 0:00:28]} f5 {[%emt 0:00:08]} 4. d3 {[%emt 0:02:12]} fxe4 {[%emt 0:00:22]} 5. dxe4 {[%emt 0:00:07]} Nf6 {[%emt 0:00:06]} 6. Qe2 {[%emt 0:04:19]} (6. O-O $14) 6... Bc5 {[%emt 0:00:27] C63: Ruy Lopez: Schliemann/Jaenisch Defence.} 7. c3 {[%emt 0:03:50]} d6 {[%emt 0:02:40]} 8. Bc4 {[%emt 0:01:57]} Qe7 {[%emt 0:07:10] The position is equal.} 9. Bg5 {[%emt 0:16:23] [#]} Bd7 $146 {[%emt 0:02:16]} ({Predecessor:} 9... Be6 10. Nbd2 O-O 11. Bxf6 Qxf6 12. O-O-O Kh8 13. Rhf1 a6 14. Bd5 Rab8 15. Ne1 Ne7 16. Bxe6 Qxe6 {1-0 (53) Martinez Alcantara,J (2620)-Shkapenko,P (2424) Chess.com INT 2021}) 10. Nbd2 {[%emt 0:02:10]} O-O-O {[%emt 0:16:43]} (10... a5 $11 {remains equal.}) 11. b4 $16 {[%emt 0:22:12]} Bb6 {[%emt 0:00:07]} 12. a4 {[%emt 0:00:36]} a5 {[%emt 0:00:22]} 13. O-O {[%emt 0:16:23]} ({Don't play} 13. b5 $6 Na7 $11) 13... Bg4 {[%emt 0:07:17]} (13... h6 $16 14. Bxf6 Qxf6) 14. Bd5 {[%emt 0:06:40]} ({Worse is} 14. b5 Nb8 $11) 14... h6 {[%emt 0:02:03] Threatens to win with ...Bxf3.} 15. Be3 {[%emt 0:03:42]} ({White should try} 15. Bxf6 $18 Qxf6 16. Bxc6 bxc6 17. bxa5) 15... Bxe3 {[%emt 0:16:53]} 16. Qxe3 {[%emt 0:00:38]} Nb8 {[%emt 0:00:30]} (16... Qe8 $16) 17. bxa5 $18 {[%emt 0:01:12] Black must now prevent Rfb1.} c6 {[%emt 0:01:20] [#]} 18. Bc4 {[%emt 0:00:24] aiming for Rab1.} g5 {[%emt 0:04:20]} (18... Qc7 $142 19. Nh4 g5) 19. Rab1 {[%emt 0:01:31]} Rd7 $2 {[%emt 0:10:02]} (19... Qc7 20. Qa7 Nfd7) 20. a6 {[%emt 0:01:34]} bxa6 {[%emt 0:01:45]} 21. Qb6 {[%emt 0:00:16][%csl Gb1][%cal Rb6b8]} Rb7 {[%emt 0:00:38]} 22. Bxa6 {[%emt 0:00:03]} Nxa6 {[%emt 0:00:12]} 23. Qxa6 {[%emt 0:00:04] White wants to mate with Qa8+.} Qc7 {[%emt 0:02:13]} 24. Rxb7 $2 {[%emt 0:09:11]} (24. Rb4 Nd7 25. Nc4) 24... Qxb7 {[%emt 0:00:03]} 25. Qd3 {[%emt 0:00:15] Rb1 is the strong threat.} Rd8 {[%emt 0:09:27]} 26. Rb1 {[%emt 0:00:51]} Qa7 {[%emt 0:00:05]} 27. Qc4 {[%emt 0:01:12] Inhibits Be6.} Kc7 {[%emt 0:01:20] [#]} 28. h3 $1 {[%emt 0:00:13]} Bd7 {[%emt 0:00:28]} (28... Bxf3 29. Nxf3 Rb8) 29. Qf7 {[%emt 0:01:24]} Ne8 {[%emt 0:00:14]} 30. Qg6 {[%emt 0:00:32]} Qxa4 {[%emt 0:00:46]} (30... g4 {was necessary.}) 31. Qxh6 {[%emt 0:00:07]} g4 {[%emt 0:00:37]} 32. hxg4 {[%emt 0:00:09]} Bxg4 {[%emt 0:00:11]} (32... Qa7 $142 33. g5 Rb8 34. Rxb8 Qxb8) 33. Qg7+ $4 {[%emt 0:00:04][%mdl 8192]} Nxg7 {[%emt 0:00:07] What a bad dream for White.  Weighted Error Value: White=0.58/Black=0.63} 0-1